fUSD/lending_fUSD_20241029
["ID","MTS","AMOUNT","RATE_DAILY","PERIOD"]
[340967190,1730175933159,510.86453267,0.00043894,30]
[340967191,1730175975599,500.0,0.00043894,30]
[340967192,1730175975869,500.0,0.00043894,30]
[340967193,1730175976474,500.0,0.00043894,30]
[340967194,1730175976754,500.0,0.00043894,30]
[340967195,1730175977022,500.0,0.00043894,30]
[340967196,1730175977318,500.0,0.00043894,30]
[340967197,1730175977613,500.0,0.00043894,30]
[340967198,1730175977953,500.0,0.00043894,30]
[340967199,1730175978379,210.27514009,0.00043894,30]
[340967200,1730175982385,10000.0,0.00043894,120]
[340967228,1730176204776,160.0,0.00024751,120]
[340967268,1730176231701,-156.24,0.00015342,2]
[340967270,1730176231711,-134.592,0.00015342,2]
[340967278,1730176231816,-21.248,0.00015342,2]
[340967279,1730176231826,-150.0,0.00015635,2]
[340967280,1730176231836,-262.78646843,0.000157,2]
[340967281,1730176231845,-150.0,0.00015799,2]
[340967282,1730176231854,-893.99214524,0.000158,2]
[340967283,1730176231864,-33500.7952,0.000158,2]
[340967284,1730176231874,-7744.2295,0.000158,2]
[340967286,1730176231884,-985.1079,0.000158,2]
[340967288,1730176231893,-296.4115,0.000158,2]
[340967290,1730176231903,-262.6551,0.000158,2]
[340967291,1730176231913,-1247.6588922,0.000158,2]
[340967292,1730176231922,-4738.56897285,0.000158,2]
[340967293,1730176231931,-500.0,0.000159,2]
[340967294,1730176231940,-79551.37926994,0.000159,2]
[340967295,1730176231952,-2786.09183497,0.000159,2]
[340967296,1730176231964,-76461.60652648,0.000159,2]
[340967299,1730176237972,-35340.8167,0.000158,2]
[340967300,1730176237984,-75173.37826861,0.000159,2]
[340967301,1730176237994,-820.0104,0.000159,2]
[340967302,1730176238003,-15348.45124482,0.000159,2]
[340967303,1730176238012,-421.1481,0.00015973,2]
[340967304,1730176238022,-500.0,0.00015973,2]
[340967305,1730176238032,-319.6212744,0.00015994,2]
[340967306,1730176238041,-3677.4816475,0.00015994,2]
[340967307,1730176238051,-150.01,0.00015999,2]
[340967308,1730176238060,-957.71720728,0.00015999,2]
[340967309,1730176238069,-493007.87260843,0.00016,2]
[340967310,1730176238078,-490923.63591064,0.00016,2]
[340967311,1730176238090,-335.54335748,0.00016,2]
[340967313,1730176239723,-2727.0184741,0.00016,2]
[340967314,1730176239942,-261.96999999,0.00016,2]
[340967315,1730176240000,-2896.58360006,0.00016,2]
[340967445,1730176248423,500.0,0.00043894,30]
[340967446,1730176248711,500.0,0.00043894,30]
[340967447,1730176248984,500.0,0.00043894,30]
[340967448,1730176249269,500.0,0.00043894,30]
[340967449,1730176249542,500.0,0.00043894,30]
[340967450,1730176249951,500.0,0.00043894,30]
[340967451,1730176250588,500.0,0.00043894,30]
[340967452,1730176250879,545.54338757,0.00043894,30]
[340967453,1730176288020,1017.59638763,0.00043894,30]
[340967454,1730176358611,500.0,0.00043894,30]
[340967455,1730176358895,500.0,0.00043894,30]
[340967456,1730176359188,539.28621315,0.00043894,30]
[340967457,1730176401243,500.0,0.00043894,30]
[340967458,1730176401543,155.43441088,0.00043894,30]
[340967459,1730176440994,729.6,0.00014666,2]
[340967460,1730176759294,179.32,0.0002481,120]
[340967461,1730176945029,693.12,0.00014648,2]
[340967463,1730177089825,329.08244593,0.00043881,30]
[340967464,1730177115593,500.0,0.00043881,30]
[340967465,1730177116216,500.0,0.00043881,30]
[340967466,1730177116489,500.0,0.00043881,30]
[340967467,1730177116777,534.82988703,0.00043881,30]
[340967468,1730177135879,-155.93,0.00015342,2]
[340967469,1730177135900,-789.07,0.0001568,2]
[340967470,1730177159646,1001.22994678,0.00043881,30]
[340967472,1730177188655,500.0,0.00043881,30]
[340967473,1730177188927,500.0,0.00043881,30]
[340967474,1730177189244,500.0,0.00043881,30]
[340967475,1730177189523,533.75649289,0.00043881,30]
[340967476,1730177189697,500.0,0.00043881,30]
[340967477,1730177189995,500.0,0.00043881,30]
[340967478,1730177190280,501.75439993,0.00043881,30]
[340967495,1730177268547,500.0,0.00043881,30]
[340967496,1730177268850,500.0,0.00043881,30]
[340967497,1730177269135,523.43002062,0.00043881,30]
[340967506,1730177431732,-87.196,0.0001568,2]
[340967507,1730177431741,-2616.91959046,0.000158,2]
[340967508,1730177431788,-506.14658476,0.000158,2]
[340967509,1730177431862,-0.20545665,0.000158,2]
[340967510,1730177431873,-3441.97345393,0.000158,2]
[340967511,1730177431955,-1801.7066142,0.000158,2]
[340967512,1730177431964,-300.0,0.00015899,2]
[340967513,1730177431974,-1122.89300298,0.000159,2]
[340967514,1730177431984,-3824.5299,0.000159,2]
[340967515,1730177431993,-782.26231858,0.000159,2]
[340967516,1730177432003,-500.0,0.00015973,2]
[340967517,1730177432012,-150.0,0.00015979,2]
[340967518,1730177432021,-51561.6459102,0.0001599,3]
[340967519,1730177432031,-89290.06225407,0.00016,2]
[340967537,1730177437801,-276.14857609,0.00016,2]
[340967538,1730177437853,-1533.55899307,0.00016,2]
[340967539,1730177437910,-349.24008833,0.00016,2]
[340967540,1730177437922,-541.90799385,0.00016,2]
[340967541,1730177438019,-2770.60908828,0.00016,2]
[340967556,1730177440061,-536.75917693,0.00016,2]
[340967557,1730177440117,-147803.13153675,0.00016,2]
[340967558,1730177440173,-552.33090042,0.00016,2]
[340967559,1730177440185,-492.73427478,0.00016,2]
[340967562,1730177442937,-8250.0,0.00016,2]
[340967563,1730177442993,-328.03838952,0.00016,2]
[340967564,1730177443005,-4809.86862228,0.00016,2]
[340967565,1730177443049,-597.62054,0.00016,2]
[340967566,1730177443060,-710.86,0.00016,2]
[340967567,1730177443103,-2580.27674442,0.00016,2]
[340967569,1730177446124,-346.43094801,0.00016,2]
[340967570,1730177446136,-1339.58,0.00016,2]
[340967571,1730177446151,-20933.10060448,0.00016,2]
[340967572,1730177446162,-3836.184991,0.00016,2]
[340967573,1730177446181,-2041.73865529,0.00016,2]
[340967574,1730177446193,-508.2123537,0.00016,2]
[340967575,1730177446205,-2195.03045816,0.00016,2]
[340967581,1730177493062,-300.0,0.00015899,2]
[340967582,1730177493083,-10232.30082988,0.000159,2]
[340967583,1730177493104,-1433.50124132,0.000159,2]
[340967584,1730177493125,-167.36827235,0.00015999,2]
[340967585,1730177493146,-236.47338451,0.00015999,2]
[340967586,1730177493171,-132630.35627194,0.00016,2]
[340967587,1730177509150,210.70476798,0.00043881,120]
[340967592,1730177542888,500.0,0.00043881,30]
[340967593,1730177543155,500.0,0.00043881,30]
[340967594,1730177543432,500.0,0.00043881,30]
[340967595,1730177543705,500.0,0.00043881,30]
[340967596,1730177543979,500.0,0.00043881,30]
[340967597,1730177544264,500.0,0.00043881,30]
[340967598,1730177544548,500.0,0.00043881,30]
[340967599,1730177544829,500.0,0.00043881,30]
[340967600,1730177545566,500.0,0.00043881,30]
[340967601,1730177545864,500.0,0.00043881,30]
[340967602,1730177546145,500.0,0.00043881,30]
[340967603,1730177546428,500.0,0.00043881,30]
[340967604,1730177546700,500.0,0.00043881,30]
[340967605,1730177547014,500.0,0.00043881,30]
[340967606,1730177547455,500.0,0.00043881,30]
[340967607,1730177547622,361.65929624,0.00043881,30]
[340967608,1730177548714,766.34,0.00014649,2]
[340967609,1730177587392,-157.68,0.00015342,2]
[340967610,1730177587413,-200.85683739,0.000158,2]
[340967611,1730177587434,-300.0,0.00015899,2]
[340967612,1730177587455,-4341.46316261,0.000159,2]
[340967613,1730177623987,-188.21385863,0.00024,30]
[340967614,1730177647141,-300.0,0.00015899,2]
[340967615,1730177647167,-29802.29443739,0.000159,2]
[340967616,1730177647191,-521.50821238,0.000159,2]
[340967617,1730177647216,-1000.0,0.000159,2]
[340967618,1730177647239,-6821.5338866,0.000159,2]
[340967619,1730177647261,-1000.0,0.000159,2]
[340967620,1730177647284,-955.6674942,0.000159,2]
[340967621,1730177647308,-2500.0,0.000159,2]
[340967622,1730177647331,-198.3625341,0.000159,2]
[340967623,1730177647353,-258.60030978,0.000159,2]
[340967624,1730177647378,-26460.4635489,0.0001599,3]
[340967625,1730177647403,-157.64892301,0.00015999,2]
[340967626,1730177647428,-190023.92065364,0.00016,2]
[340967629,1730177825378,500.0,0.00043881,30]
[340967630,1730177825652,500.0,0.00043881,30]
[340967631,1730177825889,179.18,0.00024915,120]
[340967632,1730177825974,500.0,0.00043881,30]
[340967633,1730177826261,500.0,0.00043881,30]
[340967634,1730177826535,500.0,0.00043881,30]
[340967635,1730177826813,175.1252969,0.00043881,30]
[340967636,1730177845412,500.0,0.00043881,30]
[340967637,1730177845692,500.0,0.00043881,30]
[340967638,1730177845983,500.0,0.00043881,30]
[340967639,1730178023916,500.0,0.00043873,30]
[340967640,1730178024194,500.0,0.00043873,30]
[340967641,1730178024829,500.0,0.00043873,30]
[340967642,1730178025095,500.0,0.00043873,30]
[340967643,1730178025490,500.0,0.00043873,30]
[340967644,1730178025769,320.70757672,0.00043873,30]
[340967645,1730178186934,767.67,0.00014267,2]
[340967647,1730178234926,150.0,0.00043873,30]
[340967648,1730178278279,150.0,0.00015,3]
[340967649,1730178389739,540.85839189,0.00043873,30]
[340967687,1730178631957,-155.67,0.00015342,2]
[340967689,1730178631966,-150.0,0.00015635,2]
[340967690,1730178631975,-701.012,0.0001568,2]
[340967691,1730178631984,-213.03879957,0.000158,2]
[340967692,1730178631993,-300.0,0.00015816,2]
[340967693,1730178632003,-1008.02920043,0.00015817,2]
[340967694,1730178632015,-2982.954594,0.00015817,2]
[340967695,1730178632027,-1912.01620557,0.00015817,2]
[340967696,1730178632036,-13571.0,0.00015817,2]
[340967697,1730178632045,-162.212,0.00015817,2]
[340967698,1730178632055,-155.421,0.00015817,2]
[340967699,1730178632064,-1155.092,0.00015817,2]
[340967700,1730178632073,-1010.6037027,0.000159,2]
[340967701,1730178632084,-248.83703896,0.000159,2]
[340967702,1730178632093,-637.1116628,0.000159,2]
[340967703,1730178632103,-4547.68925772,0.000159,2]
[340967704,1730178632113,-172.40020652,0.000159,2]
[340967705,1730178632123,-3793.3175,0.000159,2]
[340967706,1730178632132,-163.96575926,0.0001599,2]
[340967707,1730178632142,-695.13,0.00015994,2]
[340967708,1730178632151,-150.01,0.00015999,2]
[340967709,1730178632161,-79411.87921579,0.00016,2]
[340967710,1730178632173,-500.0,0.00016,2]
[340967711,1730178632184,-1981.09,0.00016,2]
[340967712,1730178632195,-29954.30071245,0.00016,2]
[340967713,1730178632207,-6337.07876168,0.00016,2]
[340967714,1730178632243,-14189.81083739,0.00016,2]
[340967715,1730178632256,-137320.20184332,0.00016,2]
[340967842,1730178640039,-165.28784602,0.00015999,2]
[340967844,1730178640050,-844.42882457,0.00016,2]
[340967850,1730178640096,-362.75,0.00016,2]
[340967863,1730178640210,-2969.13831216,0.00016,2]
[340967875,1730178640323,-574.0,0.00016,2]
[340967877,1730178640335,-1074.7,0.00016,2]
[340967888,1730178640433,-485.0,0.00016,2]
[340967966,1730178641171,500.0,0.00043873,30]
[340968125,1730178643136,-1087.0,0.00015817,2]
[340968126,1730178643146,-3580.7622301,0.00016,2]
[340968127,1730178643159,-479.26385747,0.00016,2]
[340968128,1730178643170,-1227.82275985,0.00016,2]
[340968129,1730178643199,-5033.15704646,0.00016,2]
[340968130,1730178643256,-2996.36265376,0.00016,2]
[340968134,1730178643967,196.06689972,0.00043873,30]
[340968135,1730178645368,516.0229542,0.00043873,30]
[340968173,1730178646129,-968.45834073,0.00016,2]
[340968180,1730178646190,-9373.59178954,0.00016,2]
[340968187,1730178646243,-1789.37478954,0.00016,2]
[340968189,1730178646255,-806.41047797,0.00016,2]
[340968191,1730178646267,-2007.98659,0.00016,2]
[340968194,1730178646278,-2336.62338792,0.00016,2]
[340968274,1730178647469,610.01188047,0.00043873,30]
[340968275,1730178649061,607.42158491,0.00043873,30]
[340968276,1730178649970,500.0,0.00043873,30]
[340968277,1730178651868,500.0,0.00043873,30]
[340968278,1730178654917,500.0,0.00043873,30]
[340968279,1730178655221,164.3028181,0.00043873,30]
[340968280,1730178661586,500.0,0.00043873,30]
[340968281,1730178671530,635.30294778,0.00043873,30]
[340968282,1730178673927,539.33989445,0.00043873,30]
[340968283,1730178675858,500.0,0.00043873,30]
[340968284,1730178686906,500.0,0.00043873,30]
[340968285,1730178693610,500.0,0.00043873,30]
[340968287,1730178701533,1000.0,0.00043873,120]
[340968288,1730178715230,729.28,0.00014201,2]
[340968289,1730178727625,500.0,0.00043873,30]
[340968290,1730178728127,588.22998483,0.00043873,30]
[340968291,1730178731506,500.0,0.00043873,30]
[340968292,1730178731782,192.53879026,0.00043873,30]
[340968293,1730178734781,587.75671554,0.00043873,30]
[340968294,1730178741314,500.0,0.00043873,30]
[340968295,1730178742814,628.12399033,0.00043873,30]
[340968296,1730178744200,611.88353931,0.00043873,30]
[340968297,1730178746762,629.0200646,0.00043873,30]
[340968298,1730178751227,502.93508176,0.00043873,30]
[340968299,1730178751429,500.0,0.00043873,30]
[340968300,1730178753707,500.0,0.00043873,30]
[340968301,1730178754094,612.9218781,0.00043873,30]
[340968302,1730178754254,500.0,0.00043873,30]
[340968303,1730178754643,341.2742246,0.00043873,30]
[340968304,1730178755900,632.9418986,0.00043873,30]
[340968305,1730178759297,512.29121354,0.00043873,30]
[340968306,1730178762124,500.0,0.00043873,30]
[340968307,1730178762400,267.89934759,0.00043873,30]
[340968308,1730178767726,649.15870241,0.00043873,30]
[340968309,1730178772316,558.10903291,0.00043873,30]
[340968310,1730178775581,642.88,0.00043873,30]
[340968311,1730178778476,555.35270107,0.00043873,30]
[340968312,1730178778664,500.0,0.00043873,30]
[340968313,1730178781063,500.0,0.00043873,30]
[340968314,1730178785672,500.0,0.00043873,30]
[340968315,1730178786431,556.30290106,0.00043873,30]
[340968316,1730178789639,585.42856442,0.00043873,30]
[340968317,1730178790317,565.88067245,0.00043873,30]
[340968318,1730178792056,500.0,0.00043873,30]
[340968319,1730178794526,340.87559992,0.00043873,30]
[340968320,1730178795994,554.74546805,0.00043873,30]
[340968321,1730178889592,6280.25,0.00043873,30]
[340968322,1730178889872,6280.25,0.00043873,30]
[340968323,1730178890154,6280.25,0.00043873,30]
[340968324,1730178890434,6280.25,0.00043873,30]
[340968325,1730178890703,6280.25,0.00043873,30]
[340968326,1730178890976,6280.25,0.00043873,30]
[340968327,1730178891271,6280.25,0.00043873,30]
[340968328,1730178891540,6280.25,0.00043873,30]
[340968329,1730178891810,6280.25,0.00043873,30]
[340968330,1730178892095,6280.25,0.00043873,30]
[340968331,1730178892355,6280.25,0.00043873,30]
[340968332,1730178892654,6280.25,0.00043873,30]
[340968333,1730178892936,6280.25,0.00043873,30]
[340968334,1730178893342,6280.25,0.00043873,30]
[340968335,1730178893617,6280.25,0.00043873,30]
[340968336,1730178893887,6280.25,0.00043873,30]
[340968337,1730178894238,6280.25,0.00043873,30]
[340968338,1730178894773,6280.25,0.00043873,30]
[340968339,1730178895046,6280.25,0.00043873,30]
[340968340,1730178895483,6280.25,0.00043873,30]
[340968341,1730178896067,6280.25,0.00043873,30]
[340968342,1730178896354,6280.25,0.00043873,30]
[340968343,1730178896669,6280.25,0.00043873,30]
[340968344,1730178896962,6280.33025922,0.00043873,30]
[340968346,1730179193490,500.0,0.00043874,30]
[340968347,1730179193772,500.0,0.00043874,30]
[340968348,1730179194084,500.0,0.00043874,30]
[340968349,1730179194358,500.0,0.00043874,30]
[340968350,1730179194699,500.0,0.00043874,30]
[340968351,1730179195082,500.0,0.00043874,30]
[340968352,1730179195578,500.0,0.00043874,30]
[340968353,1730179195975,500.0,0.00043874,30]
[340968354,1730179196154,500.0,0.00043874,30]
[340968355,1730179196433,500.0,0.00043874,30]
[340968356,1730179197060,500.0,0.00043874,30]
[340968357,1730179197331,608.62976267,0.00043874,30]
[340968358,1730179197829,179.05,0.00014947,2]
[340968359,1730179225607,282.76,0.00014944,2]
[340968360,1730179225954,692.81,0.0001305,2]
[340968362,1730179285849,753.7,0.00014931,2]
[340968363,1730179308207,161.07,0.00014951,2]
[340968364,1730179370399,375.79,0.00014821,2]
[340968365,1730179374516,5570.46,0.00014881,2]
[340968366,1730179415673,150.0,0.00014917,2]
[340968367,1730179481641,151.08,0.00014917,2]
[340968368,1730179482063,151.08,0.0001493,2]
[340968369,1730179482289,151.08,0.00014942,2]
[340968370,1730179482712,151.08,0.00014955,2]
[340968371,1730179483148,151.08,0.00014967,2]
[340968372,1730179483591,151.08,0.0001498,2]
[340968373,1730179484016,151.08,0.00014992,2]
[340968374,1730179511802,23900.0,0.00014962,2]
[340968375,1730179606885,500.0,0.00043874,30]
[340968376,1730179607184,500.0,0.00043874,30]
[340968377,1730179607505,500.0,0.00043874,30]
[340968378,1730179607814,500.0,0.00043874,30]
[340968379,1730179608461,500.0,0.00043874,30]
[340968380,1730179608729,500.0,0.00043874,30]
[340968381,1730179608999,500.0,0.00043874,30]
[340968382,1730179609276,500.0,0.00043874,30]
[340968383,1730179609546,500.0,0.00043874,30]
[340968384,1730179609826,500.0,0.00043874,30]
[340968385,1730179610087,500.0,0.00043874,30]
[340968386,1730179610346,500.0,0.00043874,30]
[340968387,1730179610972,500.0,0.00043874,30]
[340968388,1730179611232,534.2861337,0.00043874,30]
[340968394,1730179651076,250.0,0.00014786,2]
[340968395,1730179683243,556.1,0.00014902,2]
[340968398,1730179744516,658.16,0.00012958,2]
[340968420,1730179802758,1000.0,0.00014899,2]
[340968421,1730179808830,150.0,0.00012958,2]
[340968422,1730179809004,150.0,0.00012958,2]
[340968423,1730179809329,150.0,0.00012958,2]
[340968424,1730179809434,150.0,0.00012958,2]
[340968425,1730179809605,150.0,0.00012958,2]
[340968426,1730179809773,150.0,0.00012958,2]
[340968427,1730179809950,150.0,0.00012958,2]
[340968428,1730179810131,150.0,0.00012958,2]
[340968429,1730179810330,150.0,0.00012958,2]
[340968430,1730179810497,150.0,0.00012958,2]
[340968431,1730179810679,150.0,0.00012958,2]
[340968432,1730179810862,150.0,0.00012958,2]
[340968433,1730179811028,150.0,0.00012958,2]
[340968434,1730179811203,213.18717629,0.00012958,2]
[340968449,1730179832321,-200.0,0.00015013,2]
[340968450,1730179832331,-201.48,0.00015055,2]
[340968451,1730179832340,-679.76,0.00015069,2]
[340968452,1730179832350,-156.22,0.00015085,2]
[340968453,1730179832360,-9175.59,0.00015087,2]
[340968454,1730179832370,-250.0,0.00015111,2]
[340968455,1730179832380,-179.18,0.00015179,2]
[340968456,1730179832389,-151.57,0.00015196,2]
[340968457,1730179832399,-701.21,0.00015196,2]
[340968458,1730179832408,-560.81,0.00015196,2]
[340968459,1730179832417,-658.16,0.00015221,2]
[340968460,1730179832427,-200.0,0.00015249,2]
[340968461,1730179832437,-150.0,0.000153,2]
[340968462,1730179832446,-156.87,0.00015342,2]
[340968463,1730179832456,-155.84,0.00015342,2]
[340968464,1730179832465,-400.0,0.000155,5]
[340968465,1730179832474,-800.0,0.000156,5]
[340968466,1730179832483,-556.1,0.00015647,2]
[340968467,1730179832493,-2145.0,0.00015682,2]
[340968468,1730179832502,-1300.0,0.000157,5]
[340968469,1730179832512,-1700.0,0.000158,5]
[340968470,1730179832521,-1248.0,0.0001588,2]
[340968471,1730179832531,-5903.0,0.0001588,2]
[340968472,1730179832540,-1982.0,0.0001588,2]
[340968473,1730179832550,-672.234,0.0001588,2]
[340968474,1730179832560,-161.07,0.00015885,2]
[340968475,1730179832570,-208.91623246,0.000159,2]
[340968476,1730179832579,-909.54333243,0.000159,2]
[340968477,1730179832589,-2200.0,0.000159,5]
[340968478,1730179832598,-424.74110854,0.000159,2]
[340968480,1730179832608,-165.8913593,0.000159,2]
[340968482,1730179832617,-347.6721416,0.000159,2]
[340968484,1730179832627,-198.3625341,0.000159,2]
[340968486,1730179832636,-3031.79283848,0.000159,2]
[340968488,1730179832645,-807.0,0.0001599,2]
[340968490,1730179832654,-665.475,0.0001599,2]
[340968492,1730179832664,-151.303,0.0001599,2]
[340968493,1730179832673,-3367.0,0.0001599,2]
[340968494,1730179832683,-1914.0,0.0001599,2]
[340968495,1730179832694,-2205.0,0.0001599,2]
[340968496,1730179832704,-813.0,0.0001599,2]
[340968497,1730179832714,-1253.0,0.0001599,2]
[340968498,1730179832724,-1087.0,0.0001599,2]
[340968499,1730179832733,-500.0,0.00015999,2]
[340968500,1730179832742,-162.30648294,0.00015999,2]
[340968501,1730179832751,-1157869.37358893,0.00016,2]
[340968502,1730179832769,-709.89,0.00016,2]
[340968518,1730179840272,-294.579,0.0001588,2]
[340968519,1730179840282,-155.421,0.0001588,2]
[340968520,1730179840291,-1154.0,0.0001588,2]
[340968521,1730179840301,-329.3355361,0.00016,2]
[340968522,1730179840333,-1587.88651662,0.00016,2]
[340968523,1730179840503,-1830.20980993,0.00016,2]
[340968524,1730179840563,-288.61535007,0.00016,2]
[340968525,1730179840679,-482330.20503301,0.00016,2]
[340968539,1730179843244,-1078.88186558,0.00016,2]
[340968553,1730179843364,-557.45058583,0.00016,2]
[340968560,1730179843422,-655.83590994,0.00016,2]
[340968562,1730179843481,-3846.66591635,0.00016,2]
[340968563,1730179843493,-688.49229623,0.00016,2]
[340968564,1730179843506,-623.16604004,0.00016,2]
[340968565,1730179846398,-451.0,0.0001588,2]
[340968566,1730179846408,-3449.0,0.00016,2]
[340968567,1730179846420,-359.00939672,0.00016,2]
[340968568,1730179846457,-30002.04690252,0.00016,2]
[340968569,1730179846468,-2699.80418807,0.00016,2]
[340968570,1730179846479,-3118.69337497,0.00016,2]
[340968571,1730179846516,-500.0,0.00016,2]
[340968572,1730179980523,1000.0,0.00043875,30]
[340968574,1730180051220,829.121,0.00043889,30]
[340968575,1730180052646,500.0,0.00043889,30]
[340968576,1730180053065,500.0,0.00043889,30]
[340968577,1730180053558,500.0,0.00043889,30]
[340968578,1730180053824,500.0,0.00043889,30]
[340968579,1730180054091,500.0,0.00043889,30]
[340968580,1730180054385,500.0,0.00043889,30]
[340968581,1730180054677,500.0,0.00043889,30]
[340968582,1730180054992,500.0,0.00043889,30]
[340968583,1730180055285,208.35098687,0.00043889,30]
[340968584,1730180102636,179.32,0.00024937,120]
[340968585,1730180184172,624.62,0.00043889,30]
[340968586,1730180184398,624.62,0.00043889,30]
[340968587,1730180185001,624.62,0.00043889,30]
[340968588,1730180185293,624.62,0.00043889,30]
[340968589,1730180185578,624.62,0.00043889,30]
[340968590,1730180185854,624.62,0.00043889,30]
[340968591,1730180186156,624.62,0.00043889,30]
[340968592,1730180186453,624.62,0.00043889,30]
[340968593,1730180186721,624.62,0.00043889,30]
[340968594,1730180187024,624.62,0.00043889,30]
[340968595,1730180187486,624.62,0.00043889,30]
[340968596,1730180187773,624.62,0.00043889,30]
[340968597,1730180188063,624.62,0.00043889,30]
[340968598,1730180188327,624.62,0.00043889,30]
[340968599,1730180188675,624.62,0.00043889,30]
[340968600,1730180191728,624.62,0.00043889,30]
[340968601,1730180192106,624.62,0.00043889,30]
[340968602,1730180192389,624.62,0.00043889,30]
[340968603,1730180192668,624.62,0.00043889,30]
[340968604,1730180192951,624.62,0.00043889,30]
[340968605,1730180193252,624.62,0.00043889,30]
[340968606,1730180199631,624.62,0.00043889,30]
[340968607,1730180200246,624.62,0.00043889,30]
[340968608,1730180200552,624.73600002,0.00043889,30]
[340968610,1730180219773,238.31931401,0.00043889,30]
[340968611,1730180236084,500.0,0.00043889,30]
[340968612,1730180240731,500.0,0.00043889,30]
[340968613,1730180243886,500.0,0.00043889,30]
[340968614,1730180244153,201.32,0.00043889,30]
[340968615,1730180265591,500.0,0.00043889,30]
[340968616,1730180277191,515.72766484,0.00043889,30]
[340968617,1730180279046,693.65,0.00014471,2]
[340968618,1730180284677,500.0,0.00043889,30]
[340968619,1730180284966,500.0,0.00043889,30]
[340968620,1730180285363,515.66806405,0.00043889,30]
[340968621,1730180289299,1052.98,0.00043889,30]
[340968622,1730180289581,1052.98,0.00043865,30]
[340968623,1730180289877,1052.98,0.00043865,30]
[340968624,1730180290242,1052.98,0.00043865,30]
[340968625,1730180290516,1052.98,0.00043865,30]
[340968626,1730180290784,1052.98,0.00043865,30]
[340968627,1730180291120,1052.98,0.00043865,30]
[340968628,1730180291412,1052.98,0.00043865,30]
[340968629,1730180291732,1052.98,0.00043865,30]
[340968630,1730180291997,1052.98,0.00043865,30]
[340968631,1730180292274,1052.98,0.00043865,30]
[340968632,1730180292535,1052.98,0.00043865,30]
[340968633,1730180292820,1052.98,0.00043865,30]
[340968634,1730180293114,1052.98,0.00043865,30]
[340968635,1730180293403,1052.98,0.00043865,30]
[340968636,1730180293866,1052.98,0.00043865,30]
[340968637,1730180294008,1052.98,0.00043865,30]
[340968638,1730180294205,1052.98,0.00043865,30]
[340968639,1730180294498,1052.98,0.00043865,30]
[340968640,1730180294814,1052.98,0.00043865,30]
[340968641,1730180295499,1052.98,0.00043865,30]
[340968642,1730180295781,1052.98,0.00043865,30]
[340968643,1730180296075,1052.98,0.00043865,30]
[340968644,1730180296350,1053.17472941,0.00043865,30]
[340968645,1730180311404,244.31917217,0.00043865,30]
[340968646,1730180376982,500.0,0.00043865,30]